{"text_format":"1","workbook":"xlsx","n_sheets":3,"sheets":["Instructions","Super Class Calculation Tool","No Dyno sheet -come here"],"not_rendered":{"charts":0,"images":2,"macros":0,"external_links":0,"defined_names":0,"comments":0,"pivot_tables":0},"unopened":[],"bounds":{"document_bytes":16777216,"sheet_cells":100000,"rows_first":2000,"rows_last":500,"rows_between":2000,"halvings":0,"cell_chars":16384,"cell_head_chars":4096},"cells_cut":0,"cells_raw":0,"read":"whole","date_system":"1900"}

{"sheet":"Instructions","index":0,"n_rows":28,"n_cols":6,"rows_kept":28,"cut":false,"hidden":false,"merged":[[21,1,21,8],[25,0,25,9],[27,0,27,4],[0,2,0,8],[2,0,4,9],[12,0,14,9],[16,0,17,9],[19,0,19,9]]}
["Start page",null,"COMSCC 2024 SUPER v1.0"]
[]
["All drivers must submit a completed sheet.  This rule has been in place but lightly enforced.  This policy will be changing this year, to be more fair to all competitiors"]
[]
[]
[]
["All dyno sheets must be no more than 3 years old, and are expected to represent the car as it is today"]
[]
["If you have a dyno sheet, please use the \"SuperClass Calculation tool\" tab"]
[]
["If you do not have a dyno sheet, use the \" No Dyno Sheet\" tab"]
[]
["If you compare the two, the \"Super Class Calculation tool\" sheet will be likely be more favorable; that is on purpose.  Get a dyno please if your intention is to compete in COM for a class championship"]
[]
[]
[]
["The sheet was built in Excel, and works best in Excel.  Using it in Google sheets or anything else may result in some of the cool automatic functions not working for you."]
[]
[]
["Please save your downloaded, completed sheet with the title in this format:"]
[]
[null,"Class_carnumber_lastname_firstname_additional information"]
[]
[null,"Example:",null,"T40_01_Tangard_Derek_Wet.xlxs"]
[]
["If you wish to run \"up\" a class, please name your sheet with the class you wish to run in"]
[]
["Please email your completed sheet to",null,null,null,null,"rules@comscc.org"]

{"sheet":"Super Class Calculation Tool","index":1,"n_rows":51,"n_cols":13,"rows_kept":51,"cut":false,"hidden":false,"merged":[[33,1,33,6],[45,6,50,6],[75,12,75,15],[0,2,0,8],[3,3,3,6],[6,8,6,10],[7,1,7,6],[8,1,8,6],[9,1,9,6],[21,1,21,6]]}
[null,null,"COMSCC 2024 SUPER v1.0"]
[]
[null,"2023 Super Class Calculation"]
[null,null,null,"Enter data only in green cells"]
[]
[null,"When using a Dyno Sheet:"]
[null,null,null,null,null,null,null,null,"2022 CLASS Corrected Power/Weight cut-offs",null,null,null,0.91]
[null,"Power to weight ratio = Competition Weight/Power",null,null,null,null,null,null,"MIN","MAX","CLASS",null,0.93]
[null,"Power = 2/3 wheel HP + 1/3 wheel torque",null,null,null,null,null,null,0,5.9989999999999997,"SUPER UNLIMITED",null,1]
[null,"Weight =  vehicle including fluids, driver, ballast, during & after competition",null,null,null,null,null,null,6,8.7989999999999995,"SUPER A"]
[null,"For dynojet; reduce power by 9% (AWD = 7%)",null,null,null,null,null,null,8.8000000000000007,12.398999999999999,"SUPER B"]
[null,null,null,null,null,null,null,null,12.4,15.798999999999999,"SUPER C"]
[null,"EnterWheel HP:",null,"(From Dyno Sheet)",null,null,null,null,15.8,18.998999999999999,"SUPER D"]
[null,"Enter Wheel Torque:",null,"(From Dyno Sheet)",null,null,null,null,19,99,"SUPER E"]
[null,"Competition Weight =",null,"(Car + driver + safety gear)"]
[null,"Enter Dynojet Factor:",null,"(enter 0.91 for Dynojet, 0.93 for AWD, else 1.0)"]
[null,"Corrected power =",{"$f":"ROUND((SUM((0.666666666666666*C13),(0.333333333333333*C14))*C16),3)","v":0},"(Including Dynojet Factor)"]
[null,"Power to Weight =",{"$f":"ROUND(C15/C17,2)","v":{"$error":"#DIV/0!"}},"CLASS = ",{"$f":"VLOOKUP(C18,I9:K14,3)","v":{"$error":"#DIV/0!"}}]
[]
[]
[null,"ALLOWABLE WEIGHT AT CURRENT POWER"]
[null,"Once you know the class above, check the line below that matches your class.  The \"Min\" and \"Max\" weights shown is the range you have to be in to remain in this class at the corrected power declared above."]
[null,null,"MIN","MAX"]
[null,"SUPER UNLIMITED",{"$f":"ROUND(I9*$C$17,0)","v":0},0]
[null,"SUPER A",{"$f":"ROUND(I10*$C$17,0)","v":0},0]
[null,"SUPER B",{"$f":"ROUND(I11*$C$17,0)","v":0},0]
[null,"SUPER C",{"$f":"ROUND(I12*$C$17,0)","v":0},0]
[null,"SUPER D",{"$f":"ROUND(I13*$C$17,0)","v":0},0]
[null,"SUPER E",{"$f":"ROUND(I14*$C$17,0)","v":0},"NA"]
[]
[]
[]
[null,"ALLOWABLE \"CORRECTED POWER\" AT CURRENT WEIGHT (including Dynojet factor)"]
[null,"Once you know the class above, check the line below that matches your class.  The \"Min\" and \"Max\" Corrected power values shown is the range you have to be in to remain in this class at the competition weight declared above."]
[null,null,"MIN","MAX"]
[null,"SUPER UNLIMITED",{"$f":"ROUND($C$15/J9,0)","v":0},"NA"]
[null,"SUPER A",0,{"$f":"ROUND($C$15/I10,0)","v":0}]
[null,"SUPER B",0,{"$f":"ROUND($C$15/I11,0)","v":0}]
[null,"SUPER C",0,{"$f":"ROUND($C$15/I12,0)","v":0}]
[null,"SUPER D",0,{"$f":"ROUND($C$15/I13,0)","v":0}]
[null,"SUPER E",0,{"$f":"ROUND($C$15/I14,0)","v":0}]
[]
[]
[null,"WEIGHT CALCULATOR"]
[null,"Car Weight"]
[null,"Driver Weight",null,"(if car weight did not include driver)",null,null,"(enter gallons of fuel when weighed)"]
[null,"Fuel Capacity",null,"(enter max capacity of fuel tank)"]
[null,"Gallons of fuel",null,"x6.3 pounds* =",{"$f":"C48*6.3","v":0},"pounds"]
[null,"Weight Empty =",{"$f":"ROUND(C45-E48,0)","v":0},"With Driver = ",{"$f":"C49+C46","v":0}]
[null,"Weight 1/2 tank =",{"$f":"ROUND(C49+(C47*6.3*0.5),0)","v":0},"With Driver = ",{"$f":"C50+C46","v":0}]
[null,"Weight Full tank =",{"$f":"ROUND(C49+(C47*6.3),0)","v":0},"With Driver = ",{"$f":"C51+C46","v":0}]

{"sheet":"No Dyno sheet -come here","index":2,"n_rows":47,"n_cols":13,"rows_kept":47,"cut":false,"hidden":false,"merged":[[0,2,0,8],[2,5,2,9],[24,2,24,4]]}
[null,null,"COMSCC 2024 SUPER v1.0"]
[]
["2023 Super Class calculation - without Dyno",null,null,null,null,"Enter data only in green cells"]
[]
[]
[]
["Alternate Power calculation:",null,null,null,null,null,null,null,null,null,null,"Alternate Weight calculation, use only if you don't know the true weight of car, driver and gear"]
[]
["Displacement in Liters:",null,null,null,null,"Enter actual displacement ",null,null,null,null,null,"Enter weight of nearest equivilent car from the Touring class sheets:"]
[]
["Enter valves per cyl factor",null,null,null,null,"Enter \".85\" for 2 valves per cylinder",null,null,null,null,0.85,"Weight=",{"$f":"S9*0.85","v":0}]
[null,null,null,null,null,"Enter \"1.0\" for 4 valves per cylinder",null,null,null,null,1]
[null,null,null,null,null,"Enter \"1.0\" for all rotary engines"]
[]
["Enter Max RPM",null,null,null,null,"Generally where the redline starts…"]
[]
["Enter Forced induction multiplier",null,null,null,null,"Enter 1.75 if turbo or supercharged",null,null,null,null,1]
[null,null,null,null,null,"Enter 1.0 for Naturally aspirated",null,null,null,null,1.75]
[]
[]
["Power =",{"$f":"D9*80","v":0},"times",{"$f":"D11","v":0},"times",{"$f":"((D15-6000)/6000)+1","v":0},"times",{"$f":"E17","v":0}]
[]
["Power =",{"$f":"B21*D21*F21*H21","v":0}]
[]
[null,null,"2022 CLASS Corrected Power/Weight cut-offs"]
[null,null,"MIN","MAX","CLASS"]
[null,null,0,5.9989999999999997,"SUPER UNLIMITED"]
[null,null,6,8.7989999999999995,"SUPER A"]
[null,null,8.8000000000000007,12.398999999999999,"SUPER B"]
[null,null,12.4,15.798999999999999,"SUPER C"]
[null,null,15.8,18.998999999999999,"SUPER D"]
[null,null,19,99,"SUPER E"]
[]
["Using the \"No Dyno sheet\" method, if you know your weight"]
[]
[null,null,"Power",{"$f":"B23","v":0},"(Transferred from\"Power\" above)"]
[null,null,"Competition Weight =",null,"Enter your known competition weight here"]
[]
[null,null,"Power to Weight =",{"$f":"ROUND(D37/D36,2)","v":{"$error":"#DIV/0!"}},"CLASS = ",{"$f":"VLOOKUP(D39,C27:E32,3)","v":{"$error":"#DIV/0!"}}]
[]
[]
["Using the \"No Dyno sheet\" method, if you do not know your weight"]
[]
[null,null,"Power",{"$f":"B23","v":0},"(Transferred from\"Power\" above)"]
[null,null,"Competition Weight =",{"$f":"M11","v":0},"(transferred from alternate weight calc. above)"]
[]
[null,null,"Power to Weight =",{"$f":"ROUND(D45/D44,2)","v":{"$error":"#DIV/0!"}},"CLASS = ",{"$f":"VLOOKUP(D47,C28:E32,3)","v":{"$error":"#DIV/0!"}}]